bitfinex-derivatives/quotes_BTCF0:USTF0_20250929
["timestamp","ask_amount","ask_price","bid_price","bid_amount"]
[1759175422281,2.1429878,114440.0,114430.0,0.0873317]
[1759175424085,2.2303119,114440.0,114420.0,1.2667733]
[1759175424293,2.2303119,114440.0,114410.0,0.4481433]
[1759175424294,0.03587,114420.0,114410.0,0.4481433]
[1759175424586,0.72959842,114420.0,114410.0,0.4481433]
[1759175425583,0.38273421,114420.0,114410.0,0.79500751]
[1759175425979,0.03587,114420.0,114410.0,0.79500751]
[1759175426184,0.38273421,114420.0,114410.0,0.79500751]
[1759175426690,0.38273421,114420.0,114410.0,0.4481433]
[1759175427791,0.38273421,114420.0,114410.0,0.79500751]
[1759175428192,0.03587,114420.0,114410.0,0.79500751]
[1759175428493,0.38273421,114420.0,114410.0,0.79500751]
[1759175428880,0.03587,114420.0,114410.0,0.79500751]
[1759175429082,0.38273421,114420.0,114410.0,0.79500751]
[1759175430893,0.81693782,114420.0,114410.0,0.4481433]
[1759175431193,1.57773782,114420.0,114410.0,0.0873433]
[1759175431398,1.59793866,114420.0,114410.0,0.0873433]
[1759175432402,2.41537866,114420.0,114410.0,0.0873433]
[1759175432803,2.48695934,114420.0,114410.0,0.0873433]
[1759175434505,1.66951934,114420.0,114410.0,0.0873433]
[1759175434703,2.48663934,114420.0,114410.0,0.0873433]
[1759175434904,2.39929994,114420.0,114410.0,0.0873433]
[1759175435506,1.58217994,114420.0,114410.0,0.0873433]
[1759175435707,2.39909994,114420.0,114410.0,0.0873433]
[1759175437005,2.39897994,114420.0,114410.0,0.0873433]
[1759175437200,1.58217994,114420.0,114410.0,0.0873433]
[1759175437406,2.39873994,114420.0,114410.0,0.0873433]
[1759175438313,1.58217994,114420.0,114410.0,0.0873433]
[1759175438510,0.05647084,114420.0,114410.0,0.79500751]
[1759175438704,0.05647084,114420.0,114410.0,0.4481433]
[1759175438904,0.40333505,114420.0,114410.0,0.79500751]
[1759175439107,0.40293505,114420.0,114410.0,0.4481433]
[1759175439305,0.75019926,114420.0,114410.0,0.4481433]
[1759175439512,1.19833866,114420.0,114410.0,0.0873433]
[1759175441712,0.1232179,114410.0,114400.0,0.0873499]
[1759175441913,0.1232246,114400.0,114390.0,0.0873572]
[1759175442110,1.11059926,114400.0,114390.0,0.0873572]
[1759175442310,0.74979926,114400.0,114390.0,0.0873572]
[1759175442812,1.56567926,114400.0,114390.0,0.0873572]
[1759175443413,0.05607084,114400.0,114390.0,0.0873572]
[1759175443614,0.40293505,114400.0,114390.0,0.43422141]
[1759175443915,1.21845505,114400.0,114390.0,0.43422141]
[1759175444215,0.05607084,114400.0,114390.0,0.43422141]
[1759175444412,0.05607084,114400.0,114390.0,0.0873572]
[1759175445112,0.05607084,114400.0,114390.0,0.4481572]
[1759175445814,0.40268895,114400.0,114390.0,0.4481572]
[1759175447720,0.40268895,114400.0,114390.0,0.0873572]
[1759175448418,0.05607084,114400.0,114390.0,0.0873572]
[1759175448618,0.40268895,114400.0,114390.0,0.0873572]
[1759175448918,0.01277,114400.0,114390.0,1.19477531]
[1759175449116,1e-07,114400.0,114390.0,1.58830829]
[1759175449418,0.03622,114410.0,114400.0,0.0873546]
[1759175449620,0.01277,114410.0,114400.0,1.61285271]
[1759175449808,0.01317,114410.0,114400.0,1.61285271]
[1759175450014,0.01317,114410.0,114400.0,1.61277271]
[1759175450216,0.03582,114410.0,114400.0,1.61277271]
[1759175450419,0.03582,114410.0,114400.0,0.79477271]
[1759175450623,0.03582,114410.0,114400.0,1.61269271]
[1759175451015,0.03582,114410.0,114400.0,0.79477271]
[1759175451407,0.03582,114410.0,114400.0,0.4481546]
[1759175451614,0.01317,114410.0,114400.0,2.01233271]
[1759175452222,0.01317,114410.0,114400.0,2.05924758]
[1759175454923,0.01317,114410.0,114400.0,1.24168758]
[1759175455117,0.01317,114410.0,114400.0,2.05840758]
[1759175455622,0.01317,114410.0,114400.0,0.89506947]
[1759175455820,0.03582,114410.0,114400.0,0.89506947]
[1759175456022,0.03582,114410.0,114400.0,1.71158947]
[1759175456718,0.03582,114410.0,114400.0,2.05820758]
[1759175457220,0.01357,114420.0,114410.0,0.087347]
[1759175457425,0.03622,114420.0,114410.0,0.84167998]
[1759175457727,0.78243811,114420.0,114410.0,0.448147]
[1759175459025,0.38203811,114420.0,114410.0,0.448147]
[1759175459223,0.38243811,114420.0,114410.0,0.448147]
[1759175460121,0.03582,114420.0,114410.0,0.448147]
[1759175460525,0.01317,114420.0,114410.0,0.79476511]
[1759175460823,0.03582,114420.0,114410.0,0.79476511]
[1759175461018,0.03542,114420.0,114410.0,0.79476511]
[1759175461229,0.03582,114420.0,114410.0,0.79476511]
[1759175462423,0.03582,114420.0,114410.0,0.448147]
[1759175462728,0.03582,114420.0,114410.0,0.79476511]
[1759175463924,0.03582,114420.0,114410.0,0.448147]
[1759175464234,0.03582,114420.0,114410.0,1.263387]
[1759175465029,0.01357,114430.0,114420.0,0.0873394]
[1759175465234,0.03622,114430.0,114420.0,0.79475751]
[1759175465624,0.03542,114430.0,114420.0,0.84167238]
[1759175465831,0.03582,114430.0,114420.0,0.84167238]
[1759175467329,1.04941938,114440.0,114430.0,0.0992718]
[1759175467526,1.04861938,114440.0,114430.0,0.80668991]
[1759175467729,1.04901938,114440.0,114430.0,0.80668991]
[1759175467930,1.04901938,114440.0,114430.0,0.4600718]
[1759175468336,1.04901938,114440.0,114430.0,0.80668991]
[1759175468536,1.04901938,114440.0,114430.0,1.62224991]
[1759175469533,1.04901938,114440.0,114430.0,1.2756318]
[1759175470223,1.39563749,114440.0,114430.0,0.4600718]
[1759175470530,1.79563749,114440.0,114430.0,0.4481318]
[1759175470833,2.15643749,114440.0,114430.0,0.0873318]
[1759175471134,3.07912396,114440.0,114430.0,0.0873318]
[1759175471329,0.03578,114430.0,114420.0,0.0873339]
[1759175471529,0.38239811,114430.0,114420.0,0.0873339]
[1759175472227,0.80264271,114430.0,114420.0,0.0873339]
[1759175472429,0.80264271,114430.0,114420.0,0.0992739]
[1759175472633,0.0560246,114430.0,114420.0,0.0992739]
[1759175472825,1.19791811,114430.0,114420.0,0.0992739]
[1759175473030,0.8513,114430.0,114420.0,0.0992739]
[1759175473230,1.19831811,114430.0,114420.0,0.0992739]
[1759175473632,1.19831811,114430.0,114420.0,0.0793439]
[1759175473938,0.38279811,114430.0,114420.0,0.06994296]
[1759175474134,0.38279811,114430.0,114420.0,0.04994296]
[1759175474636,0.03618,114430.0,114420.0,0.04994296]
[1759175477338,0.05647773,114430.0,114420.0,0.04994296]
[1759175478147,0.03618,114430.0,114420.0,0.04994296]
[1759175478337,0.05648752,114430.0,114420.0,0.04994296]
[1759175479537,0.03618,114430.0,114420.0,0.41074296]
[1759175480342,0.05648913,114430.0,114420.0,0.41074296]
[1759175481249,0.03618,114430.0,114420.0,0.41074296]
[1759175481436,0.05649104,114430.0,114420.0,0.41074296]
[1759175481637,0.05609104,114430.0,114420.0,0.41074296]
[1759175481837,0.05649104,114430.0,114420.0,0.41074296]
[1759175482047,0.03518,114430.0,114420.0,0.45765783]
[1759175482352,0.38179811,114430.0,114420.0,0.45765783]
[1759175482734,0.78179811,114430.0,114420.0,0.45765783]
[1759175482946,0.78179811,114430.0,114420.0,0.03800296]
[1759175485343,1.16291919,114430.0,114420.0,0.03800296]
[1759175486548,1.16291919,114430.0,114410.0,0.0873463]
[1759175486549,1.6842086,114430.0,114410.0,0.0873463]
[1759175486748,0.03443,114410.0,114400.0,0.0873546]
[1759175487048,1.22891108,114410.0,114400.0,0.1096146]
[1759175487247,1.22891108,114410.0,114400.0,0.45623271]
[1759175487248,0.41555108,114410.0,114400.0,0.45623271]
[1759175487452,0.41555108,114410.0,114400.0,0.1096146]
[1759175487646,0.41595108,114410.0,114400.0,0.1096146]
[1759175487948,0.03443,114410.0,114400.0,0.81703271]
[1759175488349,0.38144811,114410.0,114400.0,0.4704146]
[1759175489148,0.03483,114410.0,114400.0,0.4704146]
[1759175490052,0.03483,114410.0,114400.0,0.1096146]
[1759175490251,0.38144811,114410.0,114400.0,0.1096146]
[1759175491049,0.03483,114410.0,114400.0,0.1096146]
[1759175491253,0.38144811,114410.0,114400.0,0.0873546]
[1759175491550,0.121785,114400.0,114390.0,0.0873573]
[1759175491754,0.46840311,114400.0,114390.0,0.0873573]
[1759175491947,1.66251421,114400.0,114390.0,0.0873573]
[1759175492340,2.06250453,114400.0,114390.0,0.0873573]
[1759175492544,0.03443,114380.0,114370.0,0.0873742]
[1759175492747,1.62621812,114380.0,114370.0,0.0873742]
[1759175493052,1.64652337,114380.0,114370.0,0.0873742]
[1759175493251,1.62621812,114380.0,114370.0,0.0873742]
[1759175493553,0.81325812,114380.0,114370.0,0.0873742]
[1759175493745,1.62621812,114380.0,114370.0,0.0873742]
[1759175493945,0.81325812,114380.0,114370.0,0.0873742]
[1759175494142,1.62625812,114380.0,114370.0,0.1096342]
[1759175494752,0.81325812,114380.0,114370.0,0.1096342]
[1759175494950,1.62637812,114380.0,114370.0,0.1096342]
[1759175495253,1.62637812,114380.0,114370.0,0.4704342]
[1759175495254,1.26557812,114380.0,114370.0,0.4704342]
[1759175496051,1.26557812,114380.0,114370.0,0.4481742]
[1759175497746,1.26557812,114380.0,114370.0,0.0873742]
[1759175498154,1.66557812,114380.0,114370.0,0.0873742]
[1759175498752,1.66541812,114380.0,114370.0,0.0873742]
[1759175498954,0.50624001,114380.0,114370.0,0.1096342]
[1759175499152,0.10624001,114380.0,114370.0,0.1096342]
[1759175499659,0.91940001,114380.0,114370.0,0.1096342]
[1759175499954,0.91900001,114380.0,114370.0,0.1096342]
[1759175500153,0.10624001,114380.0,114370.0,0.1096342]
[1759175500551,0.10624001,114380.0,114370.0,0.45625231]
[1759175501256,0.10624001,114380.0,114370.0,0.1096342]
[1759175501556,0.03483,114380.0,114370.0,1.22905231]
[1759175501854,0.03483,114380.0,114370.0,0.82905231]
[1759175502156,0.02138,114380.0,114370.0,1.22905231]
[1759175502359,0.03523,114390.0,114380.0,0.1096302]
[1759175502656,0.03483,114390.0,114380.0,0.81704831]
[1759175502852,0.03483,114390.0,114380.0,0.4704302]
[1759175503058,0.38144811,114390.0,114380.0,0.4704302]
[1759175503759,0.03483,114390.0,114380.0,0.4704302]
[1759175504053,0.38144811,114390.0,114380.0,0.4704302]
[1759175504257,0.45113964,114390.0,114380.0,0.4704302]
[1759175504457,0.45113964,114390.0,114380.0,0.1096302]
[1759175506060,0.10452153,114390.0,114380.0,0.1096302]
[1759175506261,0.45120204,114390.0,114380.0,0.45631071]
[1759175511475,0.45120204,114390.0,114380.0,0.0873702]
[1759175511966,1.64604515,114390.0,114380.0,0.0873702]
[1759175512167,1.6663617,114390.0,114380.0,0.0873702]
[1759175512567,1.31968119,114390.0,114380.0,0.0873702]
[1759175513880,1.6663617,114390.0,114380.0,0.0873702]
[1759175514671,1.5789991,114390.0,114380.0,0.0873702]
[1759175515176,1.6663617,114390.0,114380.0,0.0523702]
[1759175515371,1.6663617,114390.0,114370.0,0.0873742]
[1759175515681,1.86932102,114380.0,114370.0,0.1012442]
[1759175515979,1.97700787,114380.0,114370.0,0.1012442]
[1759175516172,2.72368838,114380.0,114370.0,0.0873742]
[1759175516572,2.75508302,114380.0,114370.0,0.0873742]
[1759175516975,1.93992302,114380.0,114370.0,0.0873742]
[1759175517181,2.75524302,114380.0,114370.0,0.0873742]
[1759175517372,1.93992302,114380.0,114370.0,0.0873742]
[1759175517677,2.75496302,114380.0,114370.0,0.0873742]
[1759175517979,1.93992302,114380.0,114370.0,0.0873742]
[1759175518473,2.75476302,114380.0,114370.0,0.0873742]
[1759175519183,2.75456302,114380.0,114370.0,0.0873742]
[1759175520167,1.93992302,114380.0,114370.0,0.0873742]
[1759175520380,0.41251119,114380.0,114370.0,0.1012442]
[1759175520681,2.00784251,114380.0,114370.0,0.1012442]
[1759175520877,2.63575808,114380.0,114360.0,0.01393288]
[1759175521077,0.0873932,114350.0,114340.0,0.00746]
[1759175521279,0.0874008,114340.0,114330.0,0.01387]
[1759175521583,1.16187837,114340.0,114330.0,0.1012785]
[1759175521772,1.07447757,114340.0,114330.0,0.1012785]
[1759175521968,1.96095918,114340.0,114330.0,0.1012785]
[1759175522272,1.95191918,114340.0,114330.0,0.1012785]
[1759175522470,1.13719918,114340.0,114330.0,0.1233485]
[1759175522672,1.95191918,114340.0,114330.0,0.1233485]
[1759175522881,1.13719918,114340.0,114330.0,0.1233485]
[1759175523081,1.95179918,114340.0,114330.0,0.1233485]
[1759175523282,1.13719918,114340.0,114330.0,0.1233485]
[1759175523783,1.95179918,114340.0,114330.0,0.1233485]
[1759175524079,1.95679918,114340.0,114330.0,0.1233485]
[1759175524678,2.04419998,114340.0,114330.0,0.1233485]
[1759175524882,2.04419998,114340.0,114330.0,0.1012785]
[1759175525082,1.95679918,114340.0,114330.0,0.1012785]
[1759175525284,1.93648263,114340.0,114330.0,0.1012785]
[1759175525975,2.02388343,114340.0,114330.0,0.1012785]
[1759175526782,1.12188263,114340.0,114330.0,0.1233485]
[1759175527084,1.93584263,114340.0,114330.0,0.1233485]
[1759175527273,1.93580263,114340.0,114330.0,0.1233485]
[1759175527685,2.02320343,114340.0,114330.0,0.1233485]
[1759175528582,2.02320343,114340.0,114330.0,0.1012785]
[1759175528784,2.76988394,114340.0,114330.0,0.1012784]
[1759175528982,0.0874084,114330.0,114320.0,0.1012815]
[1759175529284,1.1416323,114330.0,114320.0,0.1012815]
[1759175529579,0.0874161,114320.0,114310.0,0.1012886]
[1759175529784,1.95516,114320.0,114310.0,0.1012886]
[1759175530680,0.0874237,114310.0,114300.0,0.1012962]
[1759175530888,1.1406476,114310.0,114300.0,0.01387]
[1759175531075,0.087439,114290.0,114280.0,0.1013125]
[1759175531282,1.9752063,114290.0,114280.0,0.1013125]
[1759175531884,1.9682063,114290.0,114280.0,0.1013125]
[1759175532285,1.9683663,114290.0,114280.0,0.1013125]
[1759175532483,1.1549263,114290.0,114280.0,0.1013125]
[1759175532682,0.36700679,114290.0,114280.0,0.1233825]
[1759175532877,1.16014339,114290.0,114280.0,0.1233825]
[1759175533184,0.34714339,114290.0,114280.0,0.47006301]
[1759175533377,1.16054339,114290.0,114280.0,0.47006301]
[1759175533688,1.2410721,114290.0,114280.0,0.47006301]
[1759175533883,0.4276721,114290.0,114280.0,0.1233825]
[1759175534086,1.2412321,114290.0,114280.0,0.1233825]
[1759175534282,0.89455159,114290.0,114280.0,0.1233825]
[1759175535383,0.82502288,114290.0,114280.0,0.1233825]
[1759175536283,0.82478288,114290.0,114280.0,0.1233825]
[1759175536794,0.89354912,114290.0,114280.0,0.1233825]
[1759175537092,0.89338912,114290.0,114280.0,0.1233825]
[1759175537290,8e-08,114290.0,114280.0,1.4268528]
[1759175537484,0.15528,114310.0,114300.0,0.1228813]
[1759175537992,1.146974,114310.0,114300.0,0.1004613]
[1759175538187,1.0595503,114310.0,114300.0,0.1004613]
[1759175539284,1.0735503,114310.0,114300.0,0.1004613]
[1759175539483,1.160974,114310.0,114300.0,0.1004613]
[1759175541091,1.62972121,114310.0,114300.0,0.1004613]
[1759175541291,0.0874314,114300.0,114290.0,0.1004647]
[1759175541496,0.9909017,114300.0,114290.0,0.1004647]
[1759175541700,1.3909017,114300.0,114290.0,0.1004647]
[1759175542287,1.3909017,114300.0,114290.0,0.01303]
[1759175542485,0.087439,114290.0,114280.0,0.1013119]
[1759175542690,1.8044693,114290.0,114280.0,0.1013119]
[1759175543800,1.8064693,114290.0,114280.0,0.1013119]
[1759175544497,1.7190303,114290.0,114280.0,0.1013119]
[1759175545199,1.73931476,114290.0,114280.0,0.1013119]
[1759175545399,1.82675376,114290.0,114280.0,0.1013119]
[1759175546701,1.82611376,114290.0,114280.0,0.1013119]
[1759175547804,1.82583376,114290.0,114280.0,0.1013119]
[1759175548103,1.01319376,114290.0,114280.0,0.1013119]
[1759175548403,1.82573399,114290.0,114280.0,0.1013119]
[1759175548900,1.8052693,114290.0,114280.0,0.1228119]
[1759175549099,0.9933093,114290.0,114280.0,0.1228119]
[1759175549405,1.82654344,114290.0,114280.0,0.1228119]
[1759175550103,1.01362344,114290.0,114280.0,0.1228119]
[1759175550404,1.82638344,114290.0,114280.0,0.1228119]
[1759175550606,0.81516,114290.0,114280.0,0.1228119]
[1759175550997,0.81472,114290.0,114280.0,0.1228119]
[1759175551199,0.81512,114290.0,114280.0,0.1228119]
[1759175551404,0.0024,114290.0,114280.0,0.1228119]
[1759175551598,0.81496,114290.0,114280.0,0.1228119]
[1759175552107,0.0024,114290.0,114280.0,0.1228119]
[1759175552306,0.8148,114290.0,114280.0,0.1228119]
[1759175552602,0.83512318,114290.0,114280.0,0.1228119]
[1759175553901,1.3574703,114290.0,114280.0,0.1228119]
[1759175554302,1.16212418,114290.0,114280.0,0.1228119]
[1759175555202,0.0024,114290.0,114280.0,0.1228119]
[1759175555406,1.16152418,114290.0,114280.0,0.1228119]
[1759175555599,0.8142,114290.0,114280.0,0.1228119]
[1759175555801,1.16152418,114290.0,114280.0,0.1228119]
[1759175556093,0.0024,114290.0,114280.0,0.87013608]
[1759175556300,0.81448,114290.0,114280.0,0.87013608]
[1759175556505,0.81404,114290.0,114280.0,0.87013608]
[1759175556709,0.81444,114290.0,114280.0,0.87013608]
[1759175556900,0.0024,114290.0,114280.0,0.87013608]
[1759175557101,0.34972418,114290.0,114280.0,0.87013608]
[1759175557307,0.0024,114290.0,114280.0,0.87013608]
[1759175557604,0.0024,114290.0,114280.0,0.8836119]
[1759175557811,0.0024,114290.0,114280.0,1.57826026]
[1759175559512,0.0024,114290.0,114280.0,1.17826026]
[1759175560412,0.0024,114290.0,114280.0,0.83093608]
[1759175561317,0.0024,114290.0,114280.0,1.17826026]
[1759175561913,0.0024,114290.0,114280.0,1.57826026]
[1759175562109,0.002,114290.0,114280.0,1.57826026]
[1759175562413,0.0024,114290.0,114280.0,1.57826026]
[1759175562909,0.0024,114290.0,114280.0,1.23093608]
[1759175563708,0.00244,114290.0,114280.0,1.23093608]
[1759175564201,0.0024,114290.0,114280.0,1.57826026]
[1759175564408,0.0008,114300.0,114290.0,0.121869]
[1759175564713,0.87809025,114310.0,114300.0,0.1218613]
[1759175564908,0.89846822,114310.0,114300.0,0.1218613]
[1759175565110,0.89846822,114310.0,114300.0,0.46918548]
[1759175565514,0.89846822,114310.0,114300.0,0.1218613]
[1759175566316,0.89832785,114310.0,114300.0,0.1218613]
[1759175567514,0.91032785,114310.0,114300.0,0.1218613]
[1759175567709,0.10112518,114310.0,114300.0,0.82984511]
[1759175567913,0.10241897,114310.0,114300.0,1.22984511]
[1759175568114,0.10243432,114310.0,114300.0,1.22984511]
[1759175568316,0.10283432,114310.0,114300.0,1.22984511]
[1759175568813,0.01370914,114310.0,114300.0,2.04156511]
[1759175569009,0.01330914,114310.0,114300.0,2.04156511]
[1759175569218,0.01330731,114310.0,114300.0,2.04156511]
[1759175569713,0.01370731,114310.0,114300.0,2.04156511]
[1759175570018,0.01370731,114310.0,114300.0,1.2943813]
[1759175570222,0.01372886,114310.0,114300.0,1.64156511]
[1759175570511,0.01372886,114310.0,114300.0,1.64152511]
[1759175570715,0.01372886,114310.0,114300.0,0.82984511]
[1759175571017,0.01372886,114310.0,114300.0,1.64152511]
[1759175571317,0.01371094,114310.0,114300.0,0.82984511]
[1759175571518,0.01371094,114310.0,114300.0,1.64152511]
[1759175572016,0.01371094,114310.0,114300.0,1.2943413]
[1759175572213,0.0124,114310.0,114300.0,1.64152511]
[1759175572414,0.01372851,114310.0,114300.0,1.64152511]
[1759175573413,0.01369162,114310.0,114300.0,1.64152511]
[1759175574411,0.01371631,114310.0,114300.0,1.64152511]
[1759175575215,0.01371631,114310.0,114300.0,1.2943413]
[1759175575520,0.01371631,114310.0,114300.0,1.64152511]
[1759175575720,0.01368823,114310.0,114300.0,1.64152511]
[1759175576415,0.01368823,114310.0,114300.0,0.82984511]
[1759175576612,0.0124,114310.0,114300.0,0.4826613]
[1759175576915,0.0124,114310.0,114300.0,1.2942613]
[1759175576916,0.01368823,114310.0,114300.0,1.2942613]
[1759175577213,0.0124,114310.0,114300.0,1.64144511]
[1759175577423,0.01371614,114310.0,114300.0,1.64144511]
[1759175578121,0.01371614,114310.0,114300.0,0.82984511]
[1759175578313,0.01371614,114310.0,114300.0,1.64140511]
[1759175578510,0.0124,114310.0,114300.0,1.64140511]
[1759175578710,0.013737,114310.0,114300.0,1.64140511]
[1759175578914,0.01372575,114310.0,114300.0,1.64140511]
[1759175579620,0.0124,114310.0,114300.0,1.64140511]
[1759175579814,0.01372579,114310.0,114300.0,2.04140511]
[1759175580723,0.01372579,114310.0,114300.0,2.04130258]
[1759175580923,0.01370686,114310.0,114300.0,2.04130258]
[1759175581610,0.01330686,114310.0,114300.0,2.04130258]
[1759175581810,0.01370686,114310.0,114300.0,2.04130258]
[1759175582014,0.01373089,114310.0,114300.0,2.04130258]
[1759175582513,0.0124,114310.0,114300.0,2.04130258]
[1759175583323,0.01373089,114310.0,114300.0,2.04130258]
[1759175584224,0.01373089,114310.0,114300.0,2.08821745]
[1759175584522,0.01370164,114310.0,114300.0,2.08821745]
[1759175585014,0.01370164,114310.0,114300.0,2.08817745]
[1759175585214,0.01370164,114310.0,114300.0,1.74109617]
[1759175585423,0.01370164,114310.0,114300.0,1.27665745]
[1759175585623,0.01371456,114310.0,114300.0,2.08813745]
[1759175587828,0.0137286,114310.0,114300.0,2.08813745]
[1759175588430,0.0124,114310.0,114300.0,2.04122258]
[1759175588631,0.0137286,114310.0,114300.0,2.04122258]
[1759175589220,0.0124,114310.0,114300.0,2.04122258]
[1759175589519,0.0137362,114310.0,114300.0,1.22974258]
[1759175589823,0.0137362,114310.0,114300.0,2.04118258]
[1759175590011,0.01370071,114310.0,114300.0,2.04118258]
[1759175590217,0.35948128,114310.0,114300.0,0.16874496]
[1759175590413,0.84820596,114310.0,114300.0,0.16874496]
[1759175590721,1.22938965,114310.0,114300.0,0.1003613]
[1759175590922,1.14196595,114310.0,114300.0,0.1003613]
[1759175591324,1.95340595,114310.0,114300.0,0.1003613]
[1759175591528,2.30048723,114310.0,114300.0,0.1003613]
[1759175591723,2.38791543,114310.0,114280.0,0.17090716]
[1759175591923,0.34708128,114300.0,114290.0,0.1003223]
[1759175592226,1.16281765,114300.0,114290.0,0.1003223]
[1759175592627,1.07538625,114300.0,114290.0,0.1003223]
[1759175593029,1.89094625,114300.0,114290.0,0.1230323]
[1759175593219,1.54386497,114300.0,114290.0,0.1230323]
[1759175593522,0.02042369,114300.0,114290.0,0.4838323]
[1759175593829,0.00604,114300.0,114290.0,0.4838323]
[1759175594126,0.00644,114300.0,114290.0,0.4838323]
[1759175594316,0.00604,114300.0,114290.0,0.4838323]
[1759175594521,0.00644,114300.0,114290.0,0.1230323]
[1759175594727,0.00644,114300.0,114290.0,0.4838323]
[1759175596126,0.71432128,114300.0,114290.0,0.1230323]
[1759175597436,0.35352128,114300.0,114290.0,0.1230323]
[1759175597730,0.35352128,114300.0,114290.0,0.4838323]
[1759175598122,0.40604,114300.0,114290.0,0.1230323]
[1759175598328,0.75352128,114300.0,114290.0,0.1230323]
[1759175598529,0.40644,114300.0,114290.0,0.1230323]
[1759175598729,0.75352128,114300.0,114290.0,0.1230323]
[1759175599035,0.40644,114300.0,114290.0,0.1230323]
[1759175599232,0.75352128,114300.0,114290.0,0.1230323]
[1759175602634,1.18803386,114300.0,114290.0,0.1003223]
[1759175602831,1.54883386,114300.0,114290.0,0.1003223]
[1759175603027,0.84095258,114300.0,114290.0,0.1226723]
[1759175603431,1.20175258,114300.0,114290.0,0.1226723]
[1759175603637,1.22280171,114300.0,114290.0,0.1226723]
[1759175603940,1.13537041,114300.0,114290.0,0.1226723]
[1759175604441,1.11432128,114300.0,114290.0,0.1226723]
[1759175605238,0.76724,114300.0,114290.0,0.1226723]
[1759175605440,1.20175258,114300.0,114290.0,0.1226723]
[1759175606036,1.11432128,114300.0,114290.0,0.1226723]
[1759175606236,1.93688128,114300.0,114290.0,0.1226723]
[1759175606439,2.02431258,114300.0,114290.0,0.1226723]
[1759175606741,2.39244296,114300.0,114290.0,0.1226723]
[1759175608042,2.04536168,114300.0,114290.0,0.1226723]
[1759175608237,2.04536345,114300.0,114290.0,0.1226723]
[1759175609544,2.39244473,114300.0,114290.0,0.1226723]
[1759175610545,2.04536345,114300.0,114290.0,0.1226723]
[1759175610842,2.06286381,114300.0,114290.0,0.1226723]
[1759175611043,2.04181294,114300.0,114290.0,0.1226723]
[1759175612939,2.38889422,114300.0,114290.0,0.1003223]
[1759175613139,1.56633422,114300.0,114290.0,0.1226723]
[1759175613437,0.84906036,114300.0,114290.0,0.83055358]
[1759175613642,0.84866036,114300.0,114290.0,0.4834723]
[1759175614141,0.84906036,114300.0,114290.0,0.4834723]
[1759175614345,0.02394036,114300.0,114290.0,0.4834723]
[1759175614643,0.84910036,114300.0,114290.0,0.4834723]
[1759175615045,0.02394036,114300.0,114290.0,0.4834723]
[1759175615539,0.02525145,114300.0,114290.0,0.83055358]
[1759175616046,0.02525145,114300.0,114290.0,0.4834723]
[1759175617245,0.04632977,114300.0,114290.0,0.4834723]
[1759175618039,0.02525145,114300.0,114290.0,0.4834723]
[1759175618235,0.04633663,114300.0,114290.0,0.4834723]
[1759175619545,0.04633663,114300.0,114290.0,0.1226723]
[1759175620850,0.39341791,114300.0,114290.0,0.1226723]
[1759175622048,0.04633663,114300.0,114290.0,0.4834723]
[1759175622349,0.02525145,114300.0,114290.0,0.4834723]
[1759175622748,0.02525145,114300.0,114290.0,0.83055358]
[1759175623145,0.01103367,114300.0,114290.0,0.83055358]
[1759175623845,0.01103367,114300.0,114290.0,0.89338799]
[1759175624051,0.01063367,114300.0,114290.0,1.29338799]
[1759175624248,0.01103367,114300.0,114290.0,1.29338799]
[1759175625549,0.01103367,114300.0,114290.0,2.11762799]
[1759175628349,0.01103367,114300.0,114290.0,2.05486212]
[1759175629750,0.35818349,114300.0,114290.0,2.05386212]
[1759175630057,0.35818349,114300.0,114290.0,0.86982212]
[1759175630253,0.35818349,114300.0,114290.0,1.23062212]
[1759175630455,0.35818349,114300.0,114290.0,2.05354212]
[1759175630653,0.35818349,114300.0,114290.0,1.23062212]
[1759175630856,0.35818349,114300.0,114290.0,2.05350212]
[1759175631451,0.01103367,114300.0,114290.0,1.23062212]
[1759175631650,0.35818349,114300.0,114290.0,0.83062212]
[1759175631851,0.70533331,114300.0,114290.0,1.3059923]
[1759175632050,0.35818349,114300.0,114290.0,0.83062212]
[1759175632254,0.35820346,114300.0,114290.0,0.83062212]
[1759175632562,0.35780346,114300.0,114290.0,0.83062212]
[1759175632761,0.01105364,114300.0,114290.0,0.83062212]
[1759175633660,0.00972258,114300.0,114290.0,0.83062212]
[1759175633862,0.01101695,114300.0,114290.0,0.83062212]
[1759175634053,0.01105475,114300.0,114290.0,0.83062212]
[1759175635056,0.01101295,114300.0,114290.0,0.83062212]
[1759175635255,0.01101295,114300.0,114290.0,1.17777194]
[1759175635456,0.00932258,114300.0,114290.0,0.83062212]
[1759175635657,0.00972258,114300.0,114290.0,0.83062212]
[1759175636357,0.01101295,114300.0,114290.0,1.17777194]
[1759175636753,0.01102287,114300.0,114290.0,1.17777194]
[1759175636958,0.01102287,114300.0,114290.0,0.83062212]
[1759175637465,0.0110283,114300.0,114290.0,0.83062212]
[1759175638458,0.00972258,114300.0,114290.0,1.57777194]
[1759175638659,0.77822533,114320.0,114310.0,0.1220842]
[1759175638859,0.79921184,114320.0,114310.0,0.46923402]
[1759175639163,0.79881184,114320.0,114310.0,0.46923402]
[1759175639658,0.81773967,114320.0,114310.0,0.46923402]
[1759175639857,0.83073967,114320.0,114310.0,0.46923402]
[1759175640159,0.48358985,114320.0,114310.0,0.46923402]
[1759175640359,0.83073967,114320.0,114310.0,0.46923402]
[1759175640761,1.17788949,114320.0,114310.0,0.46923402]
[1759175641062,1.17788949,114320.0,114310.0,0.1220842]
[1759175641265,1.17788949,114320.0,114310.0,0.46923402]
[1759175641659,0.83073967,114320.0,114310.0,0.46923402]
[1759175643963,0.83073967,114320.0,114310.0,0.1220842]
[1759175644160,0.46993967,114320.0,114310.0,0.46923402]
[1759175644462,0.46953967,114320.0,114310.0,0.46923402]
[1759175644663,0.46993967,114320.0,114310.0,0.46923402]
[1759175646771,0.81708949,114320.0,114310.0,0.46923402]
[1759175647066,0.81708949,114320.0,114310.0,0.1220842]
[1759175647968,0.90450609,114320.0,114310.0,0.1220842]
[1759175649365,1.63592949,114320.0,114310.0,0.1220842]
[1759175649567,1.63588949,114320.0,114310.0,0.1220842]
[1759175650155,0.81708949,114320.0,114310.0,0.1220842]
[1759175650664,0.81708949,114320.0,114310.0,0.46923402]
[1759175651567,0.46993967,114320.0,114310.0,0.46923402]
[1759175652864,0.94098985,114320.0,114310.0,0.46923402]
[1759175653066,1.28813967,114320.0,114310.0,0.46923402]
[1759175653872,0.46993967,114320.0,114310.0,0.46923402]
[1759175654171,1.28805967,114320.0,114310.0,0.1220842]
[1759175654367,1.28805967,114320.0,114310.0,0.46923402]
[1759175656672,0.94090985,114320.0,114310.0,0.46923402]
[1759175656870,1.63520949,114320.0,114310.0,0.1220842]
[1759175657071,0.94090985,114320.0,114310.0,0.1220842]
[1759175657271,1.63520949,114320.0,114310.0,0.1220842]
[1759175657471,1.28805967,114320.0,114310.0,0.1220842]
[1759175657873,1.28805967,114320.0,114310.0,0.46923402]
[1759175659172,1.63520949,114320.0,114310.0,0.46923402]
[1759175659976,1.63520949,114320.0,114310.0,0.1220842]